[Event "Ostravsky Konik FIDE-A 2024"]
[Site "Ostrava"]
[Date "2024.04.29"]
[Round "3.6"]
[White "Rudolf, Michal"]
[Black "Mannion, Stephen R"]
[Result "1/2-1/2"]
[ECO "C79"]
[WhiteElo "2268"]
[BlackElo "2159"]
[Annotator "TA"]
[PlyCount "81"]
[EventDate "2024.04.26"]
[EventType "swiss"]
[EventCountry "CZE"]
[SourceTitle "playchess.com"]
[Source "ChessBase"]
[SourceQuality "1"]
[TimeControl "40/5400+30:1800+30"]

{[%evp 15,81,27,45,25,30,24,31,34,50,48,59,58,70,20,16,0,0,0,11,-58,0,-98,-95,-79,-70,-68,-32,-127,-108,-125,-51,-155,-132,-237,-193,-187,-183,-200,-187,-282,-127,-200,-107,-118,0,-130,133,137,133,125,128,10,9,12,14,0,0,0,0,0,0,0,0,0,0,0,0,0]} 1. e4 {[%emt 1:31:00]} e5 {[%emt 1:31:00]} 2. Nf3 {[%emt 0:00:30]} Nc6 {[%emt 0:00:30]} 3. Bb5 {[%emt 0:00:30]} a6 {[%emt 0:00:30]} 4. Ba4 {[%emt 0:00:30]} Nf6 {[%emt 0:00:30]} 5. O-O {[%emt 0:00:30]} d6 {[%emt 0:00:30]} 6. Re1 {[%emt 0:00:30]} Bd7 {[%emt 0:00:30]} 7. c3 {[%emt 0:00:30]} g6 {[%emt 0:00:30]} 8. d4 {[%emt 0:00:30]} Bg7 {[%emt 0:00:30]} 9. h3 {[%emt 0:00:30]} O-O {[%emt 0:00:30]} 10. Bc2 {[%emt 0:00:30]} Nh5 {[%emt 0:00:30]} 11. Bg5 {[%emt 0:00:30] White is slightly better.} f6 {[%emt 0:00:30]} 12. Be3 {[%emt 0:00:30]} Kh8 {[%emt 0:00:30]} 13. Nbd2 {[%emt 0:00:30]} Qe8 {[%emt 0:00:30]} 14. Nf1 {[%emt 0:00:30]} (14. Nc4 $14) 14... f5 $11 {[%emt 0:00:30]} 15. exf5 {[%emt 0:00:30]} gxf5 {[%emt 0:00:30]} 16. dxe5 {[%emt 0:00:30]} dxe5 {[%emt 0:00:30]} 17. Bc5 {[%emt 0:00:30]} (17. Nh4 $11) 17... Rf6 {[%emt 0:00:30]} (17... Rg8 $15 18. Bb3 Be6) 18. Ne3 {[%emt 0:00:30]} (18. Ng3 $1 $11 Nxg3 19. fxg3) 18... Nf4 $1 $17 {[%emt 0:00:30]} 19. Nd5 Nxd5 20. Qxd5 {[%cal Rf3e5]} Be6 21. Qd2 ({White has to play} 21. Qd1 $1 $15) 21... b6 $1 $36 {[%mdl 2048] Black has strong initiative.} 22. Ba3 e4 (22... Bh6 $17 23. Qe2 (23. Ng5 $2 Rd8 $19) 23... e4) 23. Nd4 ({Only move:} 23. Ng5 $15) 23... Rd8 24. Qe2 (24. Rad1 $17) 24... Nxd4 25. cxd4 Rg6 (25... Rxd4 26. Rad1 Rg6 27. b3 $17) 26. Rad1 Bxd4 {[%emt 0:04:00] ...c5 would now be deadly.} (26... Bxa2 27. b3 $17) 27. b3 {[%emt 0:04:30]} (27. Kh1 $142) 27... Bc3 {[%emt 0:00:30]} (27... Qg8 $19 {is more deadly.} 28. Rxd4 Rxg2+ (28... Rxd4 $2 29. Qf1 $19) 29. Kh1 Rxd4) 28. Rf1 {[%emt 0:00:30]} (28. Rxd8 $17 Qxd8 29. Rd1) 28... Qg8 {[%emt 0:00:30]} (28... Bd5 $19 {White must now prevent ...Qe5.} 29. Bc1 Be5 (29... e3 30. f3 $11)) 29. f3 {[%emt 0:00:30] [#]} e3 {[%emt 0:00:30]} 30. Kh1 {[%emt 0:00:30]} (30. Qxa6 Rxg2+ 31. Kh1 Rxd1 (31... Rxc2 32. Rxd8 Qxd8 33. Bc1 Qh4 34. Qa8+ Bg8 35. Qxg8+ Kxg8 36. Rg1+ Bg7 37. Rg3 Qxg3 38. Bd2 exd2 39. b4 d1=Q#) 32. Rxd1 Be5 (32... Rxc2 $2 33. Rg1 $19) 33. f4 Bd5 (33... Bxf4 34. Bb2+ Rg7 35. Bxg7+ Qxg7 36. Rd8+ Bg8 37. Qc4 $11) (33... Rg1+ 34. Rxg1 Bd5+ 35. Be4 Bxe4+ 36. Kh2 Bxf4+ 37. Rg3 Qxg3#) (33... Bxf4 34. Bb2+ Rg7 35. Bxg7+ Qxg7 36. Rd8+ Bg8 37. Qc4 $11) (33... Rg1+ 34. Rxg1 Bd5+ 35. Be4 Bxe4+ 36. Kh2 Bxf4+ 37. Rg3 Qxg3#)) (30. Rxd8 $11 {keeps the balance.} Qxd8 31. Bc1 (31. Qxe3 $2 Bd4 $19)) 30... Bd4 $2 {[%emt 0:00:30][%mdl 8192] [#]} ({Don't play} 30... Rd2 31. Rxd2 exd2 32. Qe3 $11) (30... Rxg2 $17 {keeps the pressure on.} 31. Qxg2 Qxg2+ 32. Kxg2 Rg8+ 33. Kh1 e2) 31. Rxd4 $1 $16 {[%emt 0:00:30][%mdl 512]} Rxd4 {[%emt 0:00:30]} 32. Bb2 {[%emt 0:00:30]} c5 {[%emt 0:00:30][%cal Og8g7]} 33. Qxe3 {[%emt 0:00:30]} ({Stronger than} 33. Bxd4+ cxd4 34. Bd3 a5 $17) ({White should try} 33. Rg1 $16) 33... Rxg2 $1 $11 {[%emt 0:00:30][%cal Og8g3] ...Qg3! is the strong threat. The position is equal.} 34. Bxd4+ {[%emt 0:00:30]} cxd4 {[%emt 0:00:30]} 35. Qe5+ {[%emt 0:00:30]} Qg7 {[%emt 0:00:30]} 36. Qxe6 {[%emt 0:00:30]} Qg3 $1 {[%emt 0:00:30][%cal Rg3h3]} (36... Rxc2 $2 {perishes.} 37. Rg1 $18 (37. Qxb6 $2 Qg2#) (37. Qxb6 $2 Qg2#)) 37. Qe8+ {[%emt 0:00:30]} (37. Qxf5 $2 Qh2#) 37... Kg7 {[%emt 0:00:30][%cal Rg3h3]} 38. Qe7+ {[%emt 0:00:30]} (38. Bxf5 $2 Qh2#) 38... Kg8 {[%emt 0:00:30][%cal Rg3h3]} 39. Qd8+ {[%emt 0:00:30]} (39. Bxf5 $2 Qh2#) 39... Kg7 {[%emt 0:00:30][%cal Rg3h3]} 40. Qxd4+ {[%emt 0:00:30]} Kg8 {[%emt 0:00:30][%cal Rg3h3]} 41. Qd8+ {[%emt 0:30:30] Whites escaped into a draw.   Weighted Error Value: White=0.32/Black=0.30.  Mistake:       	White=10    	Black=6      Inaccurate:     	---       	Black=1      OK:         	White=10    	Black=8      Best:        	White=1     	Black=2      Strong:       	---       	Black=4      Brilliant:      	White=1     	---} (41. Bxf5 $2 Qh2#) 1/2-1/2

[Event "Ostravsky Konik FIDE-A 2024"]
[Site "Ostrava"]
[Date "2024.04.29"]
[Round "3.7"]
[White "Zdybel, Przemyslaw"]
[Black "Jendrowiak, Maciej"]
[Result "1-0"]
[ECO "B12"]
[WhiteElo "2264"]
[BlackElo "1907"]
[Annotator "TA"]
[PlyCount "125"]
[EventDate "2024.04.26"]
[EventType "swiss"]
[EventCountry "CZE"]
[SourceTitle "playchess.com"]
[Source "ChessBase"]
[SourceQuality "1"]
[TimeControl "40/5400+30:1800+30"]

{[%evp 9,125,18,26,6,20,11,10,0,0,0,0,0,0,-7,-6,-4,-7,-7,0,0,0,-12,-10,-6,-6,-8,-10,-27,-32,-27,0,0,0,-7,-13,-18,-4,-12,-14,-20,-21,-29,-8,-21,-8,-15,0,0,-8,-26,0,0,24,0,0,0,33,33,33,33,34,26,57,53,64,57,54,54,84,91,106,97,104,93,185,170,150,107,266,253,263,263,241,225,306,248,261,238,222,208,218,202,228,151,516,494,549,549,553,547,733,733,714,639,638,629,628,605,635,631,627,633,626,626,598,589,5181,738]} 1. e4 {[%emt 1:31:00]} c6 2. d4 d5 3. e5 Bf5 4. h4 h5 5. Bd3 Bxd3 6. Qxd3 {[%cal Oe5e6]} Qa5+ 7. Nd2 {[%cal Oe5e6]} e6 8. Ngf3 {The position is equal.} Qa6 {[%emt 1:34:30]} 9. c4 {[%emt 0:04:00]} Ne7 10. b3 Nd7 {[%emt 0:01:00]} 11. O-O Nf5 12. Bb2 Be7 13. g3 O-O 14. Qc2 b6 15. a4 {[%cal Oa4a5]} Qb7 {[%emt 0:02:30]} 16. cxd5 cxd5 17. Qd3 a6 18. Bc3 b5 19. Rfc1 b4 {[%emt 0:02:00]} 20. Bb2 {[%emt 0:05:30]} Rfc8 {[%emt 0:00:30]} 21. Rxc8+ {[%emt 0:00:30]} Rxc8 {[%emt 0:00:30]} 22. Rd1 {[%emt 0:00:30]} Rc6 {[%emt 0:00:30]} 23. Ne1 {[%emt 0:00:30]} g6 {[%emt 0:00:30]} 24. Ndf3 {[%emt 0:00:30]} Qc8 {[%emt 0:00:30]} 25. Kg2 {[%emt 0:00:30]} Kg7 {[%emt 0:00:30]} 26. Qb1 {[%emt 0:00:30]} Rc7 {[%emt 0:00:30]} 27. Bc1 {[%emt 0:00:30]} Rc3 {[%emt 0:00:30]} 28. Bd2 Rc6 29. Qd3 Qc7 30. Kh3 Nh6 {[%emt 0:01:30]} 31. Ng5 {[%emt 0:02:00]} Nf5 32. Ngf3 {[%cal Bg5f3,Bf3g1,Bg1e2][%mdl 32]} Nh6 33. Ng1 Nf5 34. Ne2 Qb6 35. Ng2 f6 36. exf6+ Bxf6 37. Bf4 Rc8 38. Ne3 Nxe3 39. Bxe3 Nf8 40. Kh2 a5 41. Re1 Qc6 (41... Kh7 $16 {was necessary.}) 42. Rc1 $18 {[%emt 0:35:30]} Qb7 {[%emt 0:36:00]} 43. Qd2 {[%emt 0:00:30]} Rc6 $2 {[%emt 0:00:30]} (43... Nd7 $16) 44. Bh6+ {[%emt 0:00:30]} Kf7 {[%emt 0:00:30]} 45. Bxf8 {[%emt 0:00:30]} Kxf8 {[%emt 0:00:30]} 46. Nf4 {[%emt 0:00:30]} Kg7 {[%emt 0:00:30][%cal Bf8g7,Bg7f7,Bf7f6][%mdl 32]} 47. Rxc6 {[%emt 0:00:30]} Qxc6 {[%emt 0:00:30][%mdl 4096] Endgame. KQB-KQN} 48. Qd3 Qe8 {[%emt 0:00:30]} 49. Qa6 {[%emt 0:01:00][%csl LRa5,LRe6]} Kf7 {[%emt 0:00:30]} 50. Qxa5 {[%emt 0:00:30]} Bxd4 {[%emt 0:00:30]} 51. Kg2 {[%emt 0:00:30]} Bc3 {[%emt 0:00:30] A mistake that costs the game.} (51... Qc6 $16 {is a better chance.} 52. Qxb4 e5) 52. Qc7+ {[%emt 0:00:30] White is clearly winning.} Kf6 {[%emt 0:00:30]} 53. Qb6 {[%emt 0:00:30][%cal Oa4a5] [#] a5! would now be deadly.} d4 {[%emt 0:00:30]} 54. a5 {[%emt 0:00:30] a6 is the strong threat.} Qd7 {[%emt 0:00:30]} 55. a6 {[%emt 0:00:30] a7 would kill now.} d3 {[%emt 0:00:30]} 56. Qb7 {[%emt 0:00:30]} Qxb7+ {[%emt 0:00:30]} 57. axb7 {[%emt 0:00:30] KB-KN} d2 {[%emt 0:00:30] [#] And now ...Be5 would win.} 58. b8=Q {[%emt 0:00:30] Threatening mate with Qf8+.} (58. b8=B $2 d1=Q (58... d1=R $2 59. Bc7 $19) 59. Bc7 e5 $19 (59... Qxb3 $2 60. Bd6 $19)) 58... d1=Q {[%emt 0:00:30]} 59. Qf8+ {[%emt 0:00:30]} Ke5 {[%emt 0:00:30]} 60. Qc5+ {[%emt 0:00:30]} Kf6 {[%emt 0:00:30]} 61. Qg5+ {[%emt 0:00:30]} Kg7 {[%emt 0:00:30]} 62. Qxg6+ {[%emt 0:00:30]} Kh8 {[%emt 0:00:30]} 63. Qxe6 {[%emt 0:00:30] Weighted Error Value: White=0.10 (very precise) /Black=0.21 (precise) .  Loses game:     	---       	Black=1      Mistake:       	White=1     	Black=2      Inaccurate:     	White=1     	Black=7      OK:         	White=23    	Black=15     Best:        	White=2     	Black=3} (63. Qf7 $142 Bg7 64. Qe8+ (64. Nxh5 Qd5+ 65. f3 Be5 $18) (64. Qxe6 Qd8 $18) (64. Qxh5+ Qxh5 65. Nxh5 Bc3 $18) 64... Kh7 65. Qg6+ (65. Qxe6 Qc2 $18) (65. Nxe6 Qd5+ 66. Kg1 Bc3 $18) (65. Qxh5+ Qxh5 66. Nxh5 Bc3 $18) 65... Kh8 66. Nxe6 (66. Nxh5 Qd5+ 67. f3 Be5 $18) (66. Qxe6 Qd8 $18) 66... Qd5+ 67. Kh2) 1-0

[Event "Ostravsky Konik FIDE-A 2024"]
[Site "Ostrava"]
[Date "2024.04.30"]
[Round "4.1"]
[White "Decuigniere, Tom"]
[Black "Bujnoch, Radek"]
[Result "1/2-1/2"]
[ECO "D44"]
[WhiteElo "2401"]
[BlackElo "2307"]
[Annotator "TA"]
[PlyCount "104"]
[EventDate "2024.04.26"]
[EventType "swiss"]
[EventCountry "CZE"]
[SourceTitle "playchess.com"]
[Source "ChessBase"]
[SourceQuality "1"]
[TimeControl "40/5400+30:1800+30"]

{[%evp 24,104,64,58,60,49,48,48,48,54,51,64,87,55,58,48,304,281,256,268,243,137,131,137,118,129,108,47,177,186,220,122,223,201,191,206,197,206,186,169,176,121,114,75,86,79,96,35,152,116,101,27,23,21,40,0,0,0,0,0,0,0,37,24,26,24,24,0,0,0,8,-8,-8,-8,-8,-8,-8,-8,-8,-8,8,8,8]} 1. d4 {[%emt 0:00:10]} d5 {[%emt 0:00:06]} 2. c4 {[%emt 0:00:05]} c6 {[%emt 0:00:05]} 3. Nf3 {[%emt 0:00:05]} Nf6 {[%emt 0:00:05]} 4. Nc3 {[%emt 0:00:05]} e6 {[%emt 0:00:05]} 5. Bg5 {[%emt 0:00:04]} dxc4 {[%emt 0:00:44]} 6. e4 {[%emt 0:00:10][%cal Be2e4,Be4e5][%mdl 32]} b5 {[%emt 0:00:13]} 7. e5 {[%emt 0:00:06]} h6 {[%emt 0:00:36]} 8. Bh4 {[%emt 0:00:10]} g5 {[%emt 0:00:07]} 9. Nxg5 {[%emt 0:00:09]} hxg5 {[%emt 0:00:11]} 10. Bxg5 {[%emt 0:00:05]} Nbd7 {[%emt 0:00:20]} 11. g3 {[%emt 0:00:15]} Bb7 {[%emt 0:00:26]} 12. Bg2 {[%emt 0:00:08]} Qb6 {[%emt 0:00:56]} 13. exf6 {[%emt 0:00:10]} (13. Bxf6 $6 Nxf6 14. exf6 O-O-O $11) 13... c5 {[%emt 0:00:11]} 14. dxc5 {[%emt 0:05:18]} Bxc5 {[%emt 0:05:02]} 15. O-O {[%emt 0:06:38]} O-O-O {[%emt 0:11:15][%cal Oc5f2] White is slightly better.} 16. Qe2 {[%emt 0:01:37]} Bd4 {[%emt 0:14:54]} 17. a4 {[%emt 0:10:04]} a6 {[%emt 0:01:09]} 18. axb5 {[%emt 0:01:28]} axb5 {[%emt 0:00:06]} 19. Be3 {[%emt 0:20:30] Some like it hot} Nc5 $2 {[%emt 0:08:30][%mdl 8192]} (19... Bxg2 $14 20. Kxg2 Qc6+ 21. f3 Bxe3 22. Qxe3 Nxf6) 20. Bxd4 $1 $18 {[%emt 0:03:25]} Rxd4 {[%emt 0:02:15]} 21. Bxb7+ {[%emt 0:00:15]} Kxb7 {[%emt 0:01:44]} 22. Qf3+ {[%emt 0:02:58]} ({White has to play} 22. Ra2 $1 $18) 22... Qc6 $16 {[%emt 0:01:06] [#]} 23. Ra7+ $3 {[%emt 0:00:34][%mdl 512]} Kb6 {[%emt 0:00:06]} 24. Qxc6+ {[%emt 0:02:47]} Kxc6 {[%emt 0:00:01]} 25. Rxf7 {[%emt 0:02:09]} (25. Rc7+ $1 $16 Kb6 26. Rxf7) 25... b4 {[%emt 0:09:20]} ({Black should play} 25... Rd2 $1 $14) 26. Nd1 $1 $18 {[%emt 0:00:36]} Nd3 {[%emt 0:10:01] [#]} 27. h4 {[%emt 0:05:09]} (27. Ne3 $1 $18) 27... Re4 {[%emt 0:15:06]} (27... Rd7 $16 {was called for.} 28. Rg7 Rxg7 29. fxg7 Rg8) 28. Kg2 {[%emt 0:08:03]} Ne1+ {[%emt 0:19:50]} 29. Kh3 {[%emt 0:06:27]} Nf3 {[%emt 0:00:00] [#]} 30. Rg7 {[%emt 0:00:24] Against Ng5+} Rf8 {[%emt 0:00:00]} 31. f7 {[%emt 0:03:37]} Ne5 {[%emt 0:00:00]} 32. Ne3 {[%emt 0:01:18]} (32. h5 $18 {Threatens to win with h6.} Nxf7 33. Ne3) 32... Nxf7 $16 {[%emt 0:00:00]} 33. Rg4 {[%emt 0:03:08]} Rxg4 {[%emt 0:00:00]} 34. Nxg4 {[%emt 0:00:01][%mdl 4096] Endgame. KRN-KRN} Kc5 {[%emt 0:00:00]} 35. Re1 {[%emt 0:03:02]} ({White should try} 35. h5 $16) 35... Kd6 {[%emt 0:01:27]} (35... c3 $14) 36. f4 {[%emt 0:03:48] White is more active.} Rc8 {[%emt 0:00:36]} 37. Ne3 {[%emt 0:03:46]} ({Better is} 37. Kg2 $16) 37... c3 $11 {[%emt 0:01:03]} 38. bxc3 {[%emt 0:00:02]} Rxc3 {[%emt 0:00:25]} 39. f5 {[%emt 0:02:57]} exf5 {[%emt 0:00:31]} 40. Nxf5+ {[%emt 0:00:06]} Kd5 {[%emt 0:00:30]} 41. Re7 {[%emt 0:33:49]} Ne5 {[%emt 0:02:34]} 42. Rb7 {[%emt 0:00:00]} b3 {[%emt 0:02:04]} 43. h5 {[%emt 0:00:00]} Ke4 {[%emt 0:18:48]} 44. Nh4 {[%emt 0:00:00]} Nd3 {[%emt 0:04:39] aiming for ...b2.} 45. Ng6 {[%emt 0:00:00] h6 is the strong threat.} b2 {[%emt 0:00:47] The position is equal.} 46. h6 {[%emt 0:00:00]} Rc1 {[%emt 0:00:35]} 47. Kg2 {[%emt 0:00:00] And now h7 would win.} ({Avoid the trap} 47. h7 $2 Rh1+ 48. Kg2 Rxh7 $19 (48... b1=R 49. Rxb1 Rxh7 50. Rf1 $11)) 47... b1=Q {[%emt 0:02:06]} (47... b1=B 48. h7 Ne1+ 49. Kh3 $18) 48. Rxb1 {[%emt 0:00:00]} Rxb1 {[%emt 0:00:16]} 49. h7 {[%emt 0:00:00]} Rb8 {[%emt 0:01:02]} 50. h8=Q {[%emt 0:00:00]} Rxh8 {[%emt 0:00:14]} 51. Nxh8 {[%emt 0:10:22] [#]} Nf4+ $1 {[%emt 0:00:37]} 52. gxf4 {[%emt 0:00:00]} Kxf4 {[%emt 0:03:46] Black defended with fortune.   Weighted Error Value: White=0.19 (very precise) /Black=0.29 (precise) .  Loses game:     	---       	Black=1      Mistake:       	White=6     	Black=3      Inaccurate:     	White=3     	Black=1      OK:         	White=9     	Black=15     Best:        	White=3     	Black=5      Strong:       	White=2     	---        Brilliant:      	White=1     	---} 1/2-1/2

[Event "Ostravsky Konik FIDE-A 2024"]
[Site "Ostrava"]
[Date "2024.04.30"]
[Round "4.2"]
[White "Zdybel, Przemyslaw"]
[Black "Nguyen, Piotr"]
[Result "0-1"]
[ECO "B06"]
[WhiteElo "2264"]
[BlackElo "2398"]
[Annotator "RC"]
[PlyCount "54"]
[EventDate "2024.04.26"]
[EventType "swiss"]
[EventCountry "CZE"]
[SourceTitle "playchess.com"]
[Source "ChessBase"]
[SourceQuality "1"]
[TimeControl "40/5400+30:1800+30"]

1. e4 {[%emt 0:02:00]} g6 {[%emt 0:00:03]} 2. d4 {[%emt 0:02:25]} Bg7 {[%emt 0:00:05]} 3. Nc3 {[%emt 0:01:02]} d6 {[%emt 0:00:07]} 4. Be3 {[%emt 0:00:52]} a6 {[%emt 0:00:06]} 5. Qd2 {[%emt 0:01:50]} b5 {[%emt 0:00:14]} 6. h4 {[%emt 0:01:27]} Nf6 {[%emt 0:00:59]} 7. f3 {[%emt 0:01:47]} h5 {[%emt 0:00:21]} 8. Nh3 {[%emt 0:02:25]} Bxh3 {[%emt 0:00:41]} 9. Rxh3 {[%emt 0:00:07]} Nbd7 {[%emt 0:11:05]} 10. d5 {[%emt 0:12:06]} Qc8 {[%emt 0:01:56]} 11. a4 {[%emt 0:15:29]} Ne5 {[%emt 0:05:30]} 12. Rh1 {[%emt 0:02:24]} b4 {[%emt 0:01:47]} 13. Na2 {[%emt 0:00:14]} c5 {[%emt 0:08:04]} 14. Be2 {[%emt 0:12:56]} O-O {[%emt 0:09:43]} 15. Bg5 {[%emt 0:04:24]} Rb8 {[%emt 0:04:56]} 16. b3 {[%emt 0:06:11]} c4 {[%emt 0:02:41]} 17. Rd1 {[%emt 0:01:43]} a5 {[%emt 0:05:22]} 18. Qe3 {[%emt 0:02:49]} Rb7 {[%emt 0:05:01]} 19. Rd2 {[%emt 0:08:49]} Rc7 {[%emt 0:09:09]} 20. Kf2 {[%emt 0:02:35]} Nh7 {[%emt 0:04:05]} 21. Bf4 {[%emt 0:01:54]} cxb3 {[%emt 0:02:19]} 22. cxb3 {[%emt 0:00:02]} f5 {[%emt 0:00:08]} 23. Kg1 {[%emt 0:01:01]} Rc2 {[%emt 0:03:52]} 24. Bxe5 {[%emt 0:02:54]} Bxe5 {[%emt 0:00:57]} 25. f4 {[%emt 0:00:05]} Bg7 {[%emt 0:01:34]} 26. exf5 {[%emt 0:03:20]} Qxf5 {[%emt 0:07:25]} 27. g3 {[%emt 0:02:15]} Rxa2 {[%emt 0:01:57]} 0-1

[Event "Ostravsky Konik FIDE-A 2024"]
[Site "Ostrava"]
[Date "2024.04.30"]
[Round "4.3"]
[White "Sobek, Jaroslav"]
[Black "Sernecki, Franciszek"]
[Result "1/2-1/2"]
[ECO "A50"]
[WhiteElo "2201"]
[BlackElo "2342"]
[Annotator "RC"]
[PlyCount "74"]
[EventDate "2024.04.26"]
[EventType "swiss"]
[EventCountry "CZE"]
[SourceTitle "playchess.com"]
[Source "ChessBase"]
[SourceQuality "1"]
[TimeControl "40/5400+30:1800+30"]

1. d4 {[%emt 0:01:39]} Nf6 {[%emt 0:00:36]} 2. c4 {[%emt 0:00:06]} e6 {[%emt 0:00:04]} 3. Bf4 {[%emt 0:00:06]} Bb4+ {[%emt 0:11:02]} 4. Nd2 {[%emt 0:00:41]} d6 {[%emt 0:05:32]} 5. a3 {[%emt 0:00:35]} Bxd2+ {[%emt 0:00:07]} 6. Qxd2 {[%emt 0:00:09]} O-O {[%emt 0:00:41]} 7. Qc2 {[%emt 0:00:34]} Qe7 {[%emt 0:10:25]} 8. Nf3 {[%emt 0:09:25]} Nbd7 {[%emt 0:06:12]} 9. e3 {[%emt 0:09:20]} e5 {[%emt 0:09:03]} 10. Bg3 {[%emt 0:03:42]} b6 {[%emt 0:02:06]} 11. Be2 {[%emt 0:03:05]} Bb7 {[%emt 0:01:21]} 12. d5 {[%emt 0:00:59]} a5 {[%emt 0:04:41]} 13. b3 {[%emt 0:01:04]} c6 {[%emt 0:06:24]} 14. dxc6 {[%emt 0:24:20]} Bxc6 {[%emt 0:00:04]} 15. Bh4 {[%emt 0:03:26]} Rfc8 {[%emt 0:04:21]} 16. O-O {[%emt 0:02:21]} b5 {[%emt 0:01:27]} 17. Qb2 {[%emt 0:05:20]} bxc4 {[%emt 0:03:06]} 18. Bxc4 {[%emt 0:00:52]} Rab8 {[%emt 0:00:19]} 19. Nd2 {[%emt 0:03:51]} Nc5 {[%emt 0:08:28]} 20. Rfc1 {[%emt 0:02:56]} Ba8 {[%emt 0:03:41]} 21. f3 {[%emt 0:01:18]} Qa7 {[%emt 0:02:05]} 22. Bf2 {[%emt 0:01:23]} Bd5 {[%emt 0:04:59]} 23. e4 {[%emt 0:02:04]} Bxc4 {[%emt 0:00:27]} 24. Rxc4 {[%emt 0:00:01]} Nfd7 {[%emt 0:00:50]} 25. Qc2 {[%emt 0:02:43]} Qa6 {[%emt 0:03:02]} 26. Bxc5 {[%emt 0:09:30]} Rxc5 {[%emt 0:01:12]} 27. Rc1 {[%emt 0:00:55]} h6 {[%emt 0:02:09]} 28. Qc3 {[%emt 0:02:12]} Rbc8 {[%emt 0:03:33]} 29. Qe3 {[%emt 0:00:38]} Qb5 {[%emt 0:00:58]} 30. Kf2 {[%emt 0:01:04]} R8c6 {[%emt 0:01:45]} 31. Rxc5 {[%emt 0:01:55]} Nxc5 {[%emt 0:00:30]} 32. Rc4 {[%emt 0:01:45]} Rb6 {[%emt 0:01:26]} 33. Rc3 {[%emt 0:02:18]} Ne6 {[%emt 0:01:27]} 34. Qd3 {[%emt 0:00:57]} Qxd3 {[%emt 0:02:17]} 35. Rxd3 {[%emt 0:00:01]} Nc5 {[%emt 0:00:35]} 36. Rc3 {[%emt 0:01:21]} Kf8 {[%emt 0:00:16]} 37. Ke2 {[%emt 0:03:20]} Ke7 {[%emt 0:00:28]} 1/2-1/2

[Event "Ostravsky Konik FIDE-A 2024"]
[Site "Ostrava"]
[Date "2024.04.30"]
[Round "4.4"]
[White "Ugorek, Kacper"]
[Black "Rudolf, Michal"]
[Result "1/2-1/2"]
[ECO "D10"]
[WhiteElo "2034"]
[BlackElo "2268"]
[Annotator "NA COMBH"]
[PlyCount "101"]
[EventDate "2024.04.26"]
[EventType "swiss"]
[EventCountry "CZE"]
[SourceTitle "playchess.com"]
[Source "ChessBase"]
[SourceQuality "1"]
[TimeControl "40/5400+30:1800+30"]

1. d4 {[%emt 1:31:00]} d5 {[%emt 0:01:29]} 2. c4 {[%emt 0:00:00]} c6 {[%emt 0:00:25]} 3. cxd5 {[%emt 0:00:00]} cxd5 {[%emt 0:00:05]} 4. Bg5 {[%emt 0:00:00]} h6 {[%emt 0:08:21]} 5. Bh4 {[%emt 0:00:00]} Qb6 {[%emt 0:00:22]} 6. Nc3 {[%emt 0:00:00]} e6 {[%emt 0:00:15]} 7. Qd2 {[%emt 0:00:00]} Nc6 {[%emt 0:01:22]} 8. e3 {[%emt 0:00:00]} Be7 {[%emt 0:05:04]} 9. Bxe7 {[%emt 0:00:00]} Ngxe7 {[%emt 0:00:06]} 10. Bd3 {[%emt 0:00:00]} e5 {[%emt 0:02:59]} 11. dxe5 {[%emt 0:00:00]} Nxe5 {[%emt 0:00:14]} 12. Bb5+ {[%emt 0:00:00]} N5c6 {[%emt 0:11:08]} 13. Nf3 {[%emt 0:00:00]} Be6 {[%emt 0:01:22]} 14. O-O {[%emt 0:00:00]} O-O {[%emt 0:00:11]} 15. Rac1 {[%emt 0:00:00]} Rad8 {[%emt 0:01:34]} 16. Bxc6 {[%emt 0:00:00]} Nxc6 {[%emt 0:02:04]} 17. Na4 {[%emt 0:00:00]} Qc7 {[%emt 0:07:07]} 18. Nd4 {[%emt 0:00:00]} Qd6 {[%emt 0:04:40]} 19. Nxc6 {[%emt 0:00:00]} bxc6 {[%emt 0:00:08]} 20. Nc5 {[%emt 0:00:00]} Rb8 {[%emt 0:02:08]} 21. b3 {[%emt 0:00:00]} Rb5 {[%emt 0:00:46]} 22. Qc3 {[%emt 0:00:00]} Rc8 {[%emt 0:02:21]} 23. Rfd1 {[%emt 0:00:00]} Qb8 {[%emt 0:03:56]} 24. Rd4 {[%emt 0:00:00]} Qe5 {[%emt 0:02:47]} 25. Ra4 {[%emt 0:00:00]} Qxc3 {[%emt 0:00:45]} 26. Rxc3 {[%emt 0:00:00]} a5 {[%emt 0:00:25]} 27. Rf4 {[%emt 0:00:00]} Re8 {[%emt 0:10:22]} 28. Rd4 {[%emt 0:00:00]} Rc8 {[%emt 0:01:47]} 29. Rd1 {[%emt 0:00:00]} Kf8 {[%emt 0:01:39]} 30. Rdc1 {[%emt 0:00:00]} Rb6 {[%emt 0:01:24]} 31. Na4 {[%emt 0:00:00]} Ra6 {[%emt 0:00:09]} 32. Nc5 {[%emt 0:00:00]} Rb6 {[%emt 0:00:07]} 33. Na4 {[%emt 0:00:00]} Ra6 {[%emt 0:00:06]} 34. Rc5 {[%emt 0:00:00]} Ke7 {[%emt 0:00:18]} 35. Nc3 {[%emt 0:00:00]} Rb8 {[%emt 0:07:02]} 36. Ne2 {[%emt 0:00:00]} a4 {[%emt 0:01:04]} 37. Rxc6 {[%emt 0:00:00]} Rxc6 {[%emt 0:00:39]} 38. Rxc6 {[%emt 0:00:00]} axb3 {[%emt 0:00:12]} 39. axb3 {[%emt 0:00:00]} Rxb3 {[%emt 0:00:09]} 40. Rc1 {[%emt 0:00:00]} Rb2 {[%emt 0:02:34]} 41. Nd4 {[%emt 0:19:20]} Kd6 {[%emt 0:31:49]} 42. h4 {[%emt 0:00:50]} Bd7 {[%emt 0:01:29]} 43. Rc2 {[%emt 0:00:28]} Rxc2 {[%emt 0:00:21]} 44. Nxc2 {[%emt 0:00:02]} g5 {[%emt 0:00:18]} 45. hxg5 {[%emt 0:00:53]} hxg5 {[%emt 0:00:06]} 46. Nd4 {[%emt 0:00:06]} f6 {[%emt 0:00:19]} 47. Kf1 {[%emt 0:02:04]} Ke5 {[%emt 0:00:42]} 48. Ke2 {[%emt 0:00:23]} Ke4 {[%emt 0:00:50]} 49. f3+ {[%emt 0:01:10]} Ke5 {[%emt 0:00:05]} 50. Kf2 {[%emt 0:01:22]} f5 {[%emt 0:01:08]} 51. g3 {[%emt 0:00:31]} 1/2-1/2